[Event "Titled Tuesday Blitz June 27 Early 2023"]
[White "Lopez Gracia, Fernando"]
[Black "Aung Thant Zin"]
[WhiteFideId "2207184"]
[BlackFideId "13000063"]
[WhiteElo "2449"]
[BlackElo "2092"]
[Result "1-0"]
[Round "2"]
[TimeControl "180+2"]
[Date "2023.06.27"]
[WhiteClock "0:00:13"]
[BlackClock "0:00:13"]
[Board "232"]

1. e4 {[%clk 0:03:00]}  c5 {[%clk 0:02:59]} 2. Nf3 {[%clk 0:03:00]}  Nc6 {[%clk 0:02:58]} 3. Bb5 {[%clk 0:02:59]}  e6 {[%clk 0:02:57]} 4. Bxc6 {[%clk 0:02:59]}  bxc6 {[%clk 0:02:56]} 5. d3 {[%clk 0:03:00]}  d6 {[%clk 0:02:55]} 6. O-O {[%clk 0:03:01]}  e5 {[%clk 0:02:54]} 7. Nbd2 {[%clk 0:02:58]}  f5 {[%clk 0:02:55]} 8. exf5 {[%clk 0:02:57]}  Bxf5 {[%clk 0:02:53]} 9. Re1 {[%clk 0:02:58]}  Be7 {[%clk 0:02:51]} 10. Nc4 {[%clk 0:02:58]}  Nf6 {[%clk 0:02:49]} 11. Ne3 {[%clk 0:02:56]}  Be6 {[%clk 0:02:47]} 12. c3 {[%clk 0:02:54]}  O-O {[%clk 0:02:46]} 13. d4 {[%clk 0:02:51]}  cxd4 {[%clk 0:02:45]} 14. cxd4 {[%clk 0:02:52]}  e4 {[%clk 0:02:45]} 15. Nd2 {[%clk 0:02:47]}  d5 {[%clk 0:02:45]} 16. Nb3 {[%clk 0:02:46]}  Bd6 {[%clk 0:02:43]} 17. Bd2 {[%clk 0:02:40]}  Qe8 {[%clk 0:02:38]} 18. Rc1 {[%clk 0:02:35]}  Rc8 {[%clk 0:02:33]} 19. Kh1 {[%clk 0:02:30]}  Qg6 {[%clk 0:02:28]} 20. h3 {[%clk 0:02:23]}  Nh5 {[%clk 0:02:11]} 21. Ng4 {[%clk 0:02:00]}  Rxf2 {[%clk 0:01:56]} 22. Nxf2 {[%clk 0:01:57]}  Qg3 {[%clk 0:01:57]} 23. Kg1 {[%clk 0:01:50]}  Rf8 {[%clk 0:01:54]} 24. Qxh5 {[%clk 0:01:39]}  Rxf2 {[%clk 0:01:45]} 25. Qe8+ {[%clk 0:01:35]}  Rf8 {[%clk 0:01:34]} 26. Qxe6+ {[%clk 0:01:35]}  Kh8 {[%clk 0:01:35]} 27. Qxd6 {[%clk 0:01:24]}  Qxd6 {[%clk 0:01:34]} 28. Rf1 {[%clk 0:01:21]}  Re8 {[%clk 0:01:29]} 29. Be3 {[%clk 0:01:19]}  Qg6 {[%clk 0:01:21]} 30. Nc5 {[%clk 0:01:18]}  h6 {[%clk 0:01:20]} 31. b3 {[%clk 0:01:15]}  Qh5 {[%clk 0:01:13]} 32. Rf2 {[%clk 0:01:13]}  Kh7 {[%clk 0:01:10]} 33. Nd7 {[%clk 0:01:12]}  Re6 {[%clk 0:01:02]} 34. Ne5 {[%clk 0:01:07]}  Qh4 {[%clk 0:00:47]} 35. Rxc6 {[%clk 0:01:00]}  Rxc6 {[%clk 0:00:46]} 36. Nxc6 {[%clk 0:01:01]}  Qh5 {[%clk 0:00:43]} 37. Rd2 {[%clk 0:00:56]}  Qg6 {[%clk 0:00:41]} 38. Ne5 {[%clk 0:00:55]}  Qg3 {[%clk 0:00:41]} 39. Re2 {[%clk 0:00:50]}  Qh4 {[%clk 0:00:39]} 40. b4 {[%clk 0:00:49]}  Qd8 {[%clk 0:00:38]} 41. Rc2 {[%clk 0:00:47]}  Qb6 {[%clk 0:00:32]} 42. a3 {[%clk 0:00:47]}  Qa6 {[%clk 0:00:32]} 43. Rc3 {[%clk 0:00:43]}  Qe2 {[%clk 0:00:31]} 44. Bf2 {[%clk 0:00:34]}  Qb2 {[%clk 0:00:28]} 45. Rg3 {[%clk 0:00:34]}  Qc1+ {[%clk 0:00:19]} 46. Kh2 {[%clk 0:00:33]}  Qf4 {[%clk 0:00:19]} 47. Be3 {[%clk 0:00:33]}  Qf1 {[%clk 0:00:19]} 48. h4 {[%clk 0:00:31]}  Qe1 {[%clk 0:00:19]} 49. Ng6 {[%clk 0:00:24]}  Qe2 {[%clk 0:00:16]} 50. Nf4 {[%clk 0:00:24]}  Qa2 {[%clk 0:00:14]} 51. h5 {[%clk 0:00:19]}  Qc4 {[%clk 0:00:13]} 52. Ng6 {[%clk 0:00:18]}  Qe2 {[%clk 0:00:12]} 53. Bg1 {[%clk 0:00:18]}  Qxh5+ {[%clk 0:00:12]} 54. Nh4 {[%clk 0:00:15]}  Qxh4+ {[%clk 0:00:11]} 55. Rh3 {[%clk 0:00:15]}  Qg4 {[%clk 0:00:12]} 56. Be3 {[%clk 0:00:15]}  Qe2 {[%clk 0:00:12]} 57. Rg3 {[%clk 0:00:14]}  Qe1 {[%clk 0:00:12]} 58. Bg1 {[%clk 0:00:14]}  Qe2 {[%clk 0:00:12]} 59. Re3 {[%clk 0:00:14]}  Qg4 {[%clk 0:00:12]} 60. Rc3 {[%clk 0:00:14]}  Qh5+ {[%clk 0:00:12]} 61. Rh3 {[%clk 0:00:13]}  Qg5 {[%clk 0:00:12]} 62. Kh1 {[%clk 0:00:13]}  Qc1 {[%clk 0:00:11]} 63. Kh2 {[%clk 0:00:13]}  Qd1 {[%clk 0:00:12]} 64. Be3 {[%clk 0:00:13]}  Qg4 {[%clk 0:00:12]} 65. Rg3 {[%clk 0:00:13]}  Qh4+ {[%clk 0:00:11]} 66. Rh3 {[%clk 0:00:13]}  Qe1 {[%clk 0:00:11]} 67. Bf4 {[%clk 0:00:13]}  Qf1 {[%clk 0:00:12]} 68. Be5 {[%clk 0:00:12]}  Qf5 {[%clk 0:00:11]} 69. Rg3 {[%clk 0:00:12]}  Qh5+ {[%clk 0:00:11]} 70. Kg1 {[%clk 0:00:11]}  Qg5 {[%clk 0:00:12]} 71. Rxg5 {[%clk 0:00:11]}  hxg5 {[%clk 0:00:11]} 72. Kf2 {[%clk 0:00:12]}  Kg6 {[%clk 0:00:12]} 73. g4 {[%clk 0:00:12]}  Kf7 {[%clk 0:00:11]} 74. Ke3 {[%clk 0:00:13]}  g6 {[%clk 0:00:12]} 75. Bh8 {[%clk 0:00:13]}  Ke6 {[%clk 0:00:13]} 76. Bg7 {[%clk 0:00:13]}  Kd7 {[%clk 0:00:13]} 77. Bh6 {[%clk 0:00:13]} 1-0


[Site "https://www.chess.com"]

[Event "Titled Tuesday Blitz June 27 Early 2023"]
[White "Andreev, Konstantin"]
[Black "Maluco_do_Natal_00"]
[WhiteFideId "24239305"]
[WhiteElo "2444"]
[BlackElo "2056"]
[Result "1-0"]
[Round "2"]
[TimeControl "180+2"]
[Date "2023.06.27"]
[WhiteClock "0:01:28"]
[BlackClock "0:00:02"]
[Board "235"]

1. e4 {[%clk 0:03:00]}  c5 {[%clk 0:03:00]} 2. Nf3 {[%clk 0:03:01]}  Nc6 {[%clk 0:03:00]} 3. Nc3 {[%clk 0:03:00]}  Nf6 {[%clk 0:02:58]} 4. d4 {[%clk 0:03:00]}  cxd4 {[%clk 0:02:58]} 5. Nxd4 {[%clk 0:03:01]}  e5 {[%clk 0:02:59]} 6. Ndb5 {[%clk 0:03:01]}  d6 {[%clk 0:03:00]} 7. Bg5 {[%clk 0:03:01]}  a6 {[%clk 0:03:00]} 8. Na3 {[%clk 0:03:02]}  b5 {[%clk 0:03:00]} 9. Nd5 {[%clk 0:03:02]}  Be7 {[%clk 0:03:00]} 10. Bxf6 {[%clk 0:03:02]}  Bxf6 {[%clk 0:03:01]} 11. c3 {[%clk 0:03:03]}  O-O {[%clk 0:03:01]} 12. Nc2 {[%clk 0:03:04]}  Bg5 {[%clk 0:03:01]} 13. h4 {[%clk 0:03:04]}  Bh6 {[%clk 0:03:01]} 14. g3 {[%clk 0:03:03]}  Be6 {[%clk 0:02:58]} 15. Bg2 {[%clk 0:03:01]}  Ne7 {[%clk 0:02:40]} 16. Nce3 {[%clk 0:02:58]}  Bxe3 {[%clk 0:02:39]} 17. Nxe3 {[%clk 0:02:59]}  Rc8 {[%clk 0:02:29]} 18. O-O {[%clk 0:02:56]}  Kh8 {[%clk 0:02:02]} 19. Qd3 {[%clk 0:02:55]}  Qd7 {[%clk 0:01:53]} 20. Rfd1 {[%clk 0:02:54]}  Rcd8 {[%clk 0:01:48]} 21. Rd2 {[%clk 0:02:29]}  f5 {[%clk 0:01:45]} 22. exf5 {[%clk 0:02:28]}  Nxf5 {[%clk 0:01:45]} 23. Nd5 {[%clk 0:02:28]}  Ne7 {[%clk 0:01:34]} 24. Rad1 {[%clk 0:02:21]}  Nxd5 {[%clk 0:01:33]} 25. Bxd5 {[%clk 0:02:22]}  Bxd5 {[%clk 0:01:33]} 26. Qxd5 {[%clk 0:02:21]}  Qc7 {[%clk 0:01:17]} 27. Qe6 {[%clk 0:02:12]}  Qc5 {[%clk 0:01:09]} 28. Kg2 {[%clk 0:02:08]}  h6 {[%clk 0:01:06]} 29. f3 {[%clk 0:02:06]}  Rf6 {[%clk 0:01:04]} 30. Qd5 {[%clk 0:02:05]}  Qc7 {[%clk 0:00:58]} 31. g4 {[%clk 0:01:50]}  Rdf8 {[%clk 0:00:54]} 32. g5 {[%clk 0:01:49]}  Rxf3 {[%clk 0:00:42]} 33. Qxf3 {[%clk 0:01:46]}  Rxf3 {[%clk 0:00:41]} 34. Kxf3 {[%clk 0:01:47]}  Qf7+ {[%clk 0:00:38]} 35. Ke4 {[%clk 0:01:38]}  Qf4+ {[%clk 0:00:20]} 36. Kd5 {[%clk 0:01:38]}  Qxh4 {[%clk 0:00:20]} 37. gxh6 {[%clk 0:01:36]}  Qxh6 {[%clk 0:00:18]} 38. Rf2 {[%clk 0:01:34]}  Kg8 {[%clk 0:00:14]} 39. Rdf1 {[%clk 0:01:32]}  Qg5 {[%clk 0:00:12]} 40. Kxd6 {[%clk 0:01:30]}  Qd8+ {[%clk 0:00:12]} 41. Kxe5 {[%clk 0:01:30]}  Qe7+ {[%clk 0:00:10]} 42. Kf5 {[%clk 0:01:27]}  Qf7+ {[%clk 0:00:10]} 43. Kg5 {[%clk 0:01:28]}  Qxa2 {[%clk 0:00:09]} 44. Rf8+ {[%clk 0:01:27]}  Kh7 {[%clk 0:00:02]} 45. Rh1# {[%clk 0:01:28]} 1-0


[Site "https://www.chess.com"]

[Event "Titled Tuesday Blitz June 27 Early 2023"]
[White "Semenova, Alina"]
[Black "Miszler, Levente"]
[WhiteFideId "24113875"]
[BlackFideId "763276"]
[WhiteElo "2052"]
[BlackElo "2444"]
[Result "0-1"]
[Round "2"]
[TimeControl "180+2"]
[Date "2023.06.27"]
[WhiteClock "0:00:00"]
[BlackClock "0:00:06"]
[Board "236"]

1. e4 {[%clk 0:02:59]}  c6 {[%clk 0:03:00]} 2. d4 {[%clk 0:02:59]}  d5 {[%clk 0:03:00]} 3. Nd2 {[%clk 0:02:59]}  dxe4 {[%clk 0:02:59]} 4. Nxe4 {[%clk 0:03:00]}  Nf6 {[%clk 0:03:00]} 5. Nxf6+ {[%clk 0:03:00]}  exf6 {[%clk 0:03:00]} 6. Nf3 {[%clk 0:03:00]}  Bd6 {[%clk 0:03:00]} 7. Be2 {[%clk 0:03:01]}  O-O {[%clk 0:03:01]} 8. O-O {[%clk 0:03:01]}  Bg4 {[%clk 0:02:58]} 9. h3 {[%clk 0:03:00]}  Bh5 {[%clk 0:02:57]} 10. Be3 {[%clk 0:02:59]}  Re8 {[%clk 0:02:57]} 11. Qd2 {[%clk 0:02:56]}  Qc7 {[%clk 0:02:56]} 12. c4 {[%clk 0:02:55]}  Nd7 {[%clk 0:02:55]} 13. Rad1 {[%clk 0:02:54]}  Rad8 {[%clk 0:02:55]} 14. Qc3 {[%clk 0:02:41]}  c5 {[%clk 0:02:52]} 15. d5 {[%clk 0:02:41]}  Ne5 {[%clk 0:02:46]} 16. Bf4 {[%clk 0:02:29]}  Bxf3 {[%clk 0:02:30]} 17. gxf3 {[%clk 0:02:10]}  Nxf3+ {[%clk 0:02:22]} 18. Bxf3 {[%clk 0:02:11]}  Bxf4 {[%clk 0:02:21]} 19. Rfe1 {[%clk 0:02:10]}  Be5 {[%clk 0:02:20]} 20. Qc2 {[%clk 0:02:08]}  Bd4 {[%clk 0:02:18]} 21. b3 {[%clk 0:02:05]}  g6 {[%clk 0:02:11]} 22. Qd2 {[%clk 0:02:01]}  Kg7 {[%clk 0:01:54]} 23. Bg2 {[%clk 0:01:57]}  Re5 {[%clk 0:01:50]} 24. Rxe5 {[%clk 0:01:55]}  Qxe5 {[%clk 0:01:48]} 25. Re1 {[%clk 0:01:54]}  Qf5 {[%clk 0:01:47]} 26. Re7 {[%clk 0:01:47]}  Rd7 {[%clk 0:01:45]} 27. Rxd7 {[%clk 0:01:47]}  Qxd7 {[%clk 0:01:46]} 28. Qf4 {[%clk 0:01:47]}  Be5 {[%clk 0:01:44]} 29. Qe4 {[%clk 0:01:44]}  Qd6 {[%clk 0:01:43]} 30. Kf1 {[%clk 0:01:33]}  f5 {[%clk 0:01:41]} 31. Qe3 {[%clk 0:01:29]}  h6 {[%clk 0:01:39]} 32. h4 {[%clk 0:01:28]}  Bd4 {[%clk 0:01:35]} 33. Qf3 {[%clk 0:01:17]}  Qh2 {[%clk 0:01:33]} 34. h5 {[%clk 0:01:13]}  gxh5 {[%clk 0:01:27]} 35. Qxf5 {[%clk 0:01:10]}  b6 {[%clk 0:01:12]} 36. Qh3 {[%clk 0:00:48]}  Qe5 {[%clk 0:01:06]} 37. Bf3 {[%clk 0:00:47]}  Qg5 {[%clk 0:00:59]} 38. Qxh5 {[%clk 0:00:43]}  Qd2 {[%clk 0:00:52]} 39. Qg4+ {[%clk 0:00:41]}  Kf6 {[%clk 0:00:50]} 40. Qh4+ {[%clk 0:00:39]}  Ke5 {[%clk 0:00:39]} 41. Qg3+ {[%clk 0:00:35]}  Kf6 {[%clk 0:00:36]} 42. Kg2 {[%clk 0:00:26]}  Be5 {[%clk 0:00:24]} 43. Qh4+ {[%clk 0:00:25]}  Kg7 {[%clk 0:00:25]} 44. Qg4+ {[%clk 0:00:23]}  Kf8 {[%clk 0:00:20]} 45. Qc8+ {[%clk 0:00:22]}  Ke7 {[%clk 0:00:17]} 46. Qb7+ {[%clk 0:00:14]}  Kf6 {[%clk 0:00:18]} 47. Qc6+ {[%clk 0:00:12]}  Kg5 {[%clk 0:00:17]} 48. Qd7 {[%clk 0:00:10]}  Bd4 {[%clk 0:00:16]} 49. Qg4+ {[%clk 0:00:09]}  Kf6 {[%clk 0:00:16]} 50. Qh4+ {[%clk 0:00:10]}  Kg7 {[%clk 0:00:14]} 51. Qg4+ {[%clk 0:00:10]}  Kh8 {[%clk 0:00:12]} 52. Qc8+ {[%clk 0:00:09]}  Kh7 {[%clk 0:00:11]} 53. Be4+ {[%clk 0:00:09]}  Kg7 {[%clk 0:00:11]} 54. Qf5 {[%clk 0:00:10]}  Kf8 {[%clk 0:00:07]} 55. Qc8+ {[%clk 0:00:09]}  Kg7 {[%clk 0:00:07]} 56. Qf5 {[%clk 0:00:09]}  Qg5+ {[%clk 0:00:07]} 57. Qxg5+ {[%clk 0:00:09]}  hxg5 {[%clk 0:00:08]} 58. Bf5 {[%clk 0:00:09]}  Kf6 {[%clk 0:00:08]} 59. Bg4 {[%clk 0:00:09]}  Ke5 {[%clk 0:00:08]} 60. Bc8 {[%clk 0:00:03]}  Bc3 {[%clk 0:00:06]} 61. Kf3 {[%clk 0:00:00]}  b5 {[%clk 0:00:06]} 0-1


[Site "https://www.chess.com"]

[Event "Titled Tuesday Blitz June 27 Early 2023"]
[White "Kowalysko, Roman"]
[Black "Zheenbekov, Nurgazy"]
[WhiteFideId "30918510"]
[BlackFideId "13800485"]
[WhiteElo "2026"]
[BlackElo "2442"]
[Result "1/2-1/2"]
[Round "2"]
[TimeControl "180+2"]
[Date "2023.06.27"]
[WhiteClock "0:00:32"]
[BlackClock "0:00:28"]
[Board "237"]

1. e4 {[%clk 0:02:57]}  e5 {[%clk 0:02:58]} 2. Nf3 {[%clk 0:02:57]}  Nc6 {[%clk 0:02:57]} 3. c3 {[%clk 0:02:54]}  d5 {[%clk 0:02:48]} 4. Qa4 {[%clk 0:02:52]}  Bd7 {[%clk 0:02:33]} 5. exd5 {[%clk 0:02:50]}  Nd4 {[%clk 0:02:32]} 6. Qd1 {[%clk 0:02:50]}  Nxf3+ {[%clk 0:02:31]} 7. Qxf3 {[%clk 0:02:50]}  Nf6 {[%clk 0:02:31]} 8. Bc4 {[%clk 0:02:48]}  Bd6 {[%clk 0:02:31]} 9. d3 {[%clk 0:02:47]}  O-O {[%clk 0:02:27]} 10. Bg5 {[%clk 0:02:39]}  Be7 {[%clk 0:02:27]} 11. Nd2 {[%clk 0:02:12]}  h6 {[%clk 0:02:27]} 12. Bxf6 {[%clk 0:02:11]}  Bxf6 {[%clk 0:02:26]} 13. Ne4 {[%clk 0:02:12]}  Be7 {[%clk 0:02:26]} 14. O-O {[%clk 0:02:11]}  Kh8 {[%clk 0:02:24]} 15. Bb3 {[%clk 0:02:05]}  f5 {[%clk 0:02:08]} 16. Nd2 {[%clk 0:02:05]}  Bd6 {[%clk 0:02:06]} 17. Nc4 {[%clk 0:02:02]}  f4 {[%clk 0:02:01]} 18. Nxd6 {[%clk 0:02:02]}  cxd6 {[%clk 0:02:01]} 19. d4 {[%clk 0:02:01]}  exd4 {[%clk 0:01:52]} 20. cxd4 {[%clk 0:02:01]}  Qg5 {[%clk 0:01:51]} 21. h3 {[%clk 0:01:59]}  Qf6 {[%clk 0:01:46]} 22. Rad1 {[%clk 0:01:56]}  Rae8 {[%clk 0:01:45]} 23. Bc2 {[%clk 0:01:52]}  Bb5 {[%clk 0:01:44]} 24. Bd3 {[%clk 0:01:52]}  Bd7 {[%clk 0:01:37]} 25. Bb1 {[%clk 0:01:47]}  Bb5 {[%clk 0:01:33]} 26. Bd3 {[%clk 0:01:47]}  Bxd3 {[%clk 0:01:29]} 27. Qxd3 {[%clk 0:01:47]}  Rc8 {[%clk 0:01:30]} 28. Rfe1 {[%clk 0:01:44]}  f3 {[%clk 0:01:28]} 29. Qxf3 {[%clk 0:01:39]}  Qxf3 {[%clk 0:01:28]} 30. gxf3 {[%clk 0:01:40]}  Rxf3 {[%clk 0:01:28]} 31. Kg2 {[%clk 0:01:40]}  Rf5 {[%clk 0:01:26]} 32. Re7 {[%clk 0:01:38]}  Rc2 {[%clk 0:01:26]} 33. Rf1 {[%clk 0:01:34]}  Rxb2 {[%clk 0:01:26]} 34. a4 {[%clk 0:01:31]}  Rxd5 {[%clk 0:01:26]} 35. Rf7 {[%clk 0:01:28]}  Kg8 {[%clk 0:01:12]} 36. Rc7 {[%clk 0:01:28]}  Rf5 {[%clk 0:01:09]} 37. Rd7 {[%clk 0:01:26]}  d5 {[%clk 0:01:08]} 38. a5 {[%clk 0:01:25]}  h5 {[%clk 0:01:02]} 39. h4 {[%clk 0:01:20]}  a6 {[%clk 0:00:57]} 40. Rc7 {[%clk 0:01:15]}  Rb5 {[%clk 0:00:53]} 41. Re1 {[%clk 0:01:13]}  Rb2 {[%clk 0:00:53]} 42. Rf1 {[%clk 0:01:12]}  Rd2 {[%clk 0:00:51]} 43. Rxb7 {[%clk 0:01:10]}  Rxd4 {[%clk 0:00:51]} 44. Re1 {[%clk 0:01:09]}  Rg4+ {[%clk 0:00:50]} 45. Kh3 {[%clk 0:01:09]}  Rf3+ {[%clk 0:00:48]} 46. Kh2 {[%clk 0:01:10]}  Rxf2+ {[%clk 0:00:40]} 47. Kh3 {[%clk 0:01:10]}  Re4 {[%clk 0:00:39]} 48. Rxe4 {[%clk 0:01:00]}  dxe4 {[%clk 0:00:39]} 49. Re7 {[%clk 0:00:55]}  Rf4 {[%clk 0:00:35]} 50. Re6 {[%clk 0:00:54]}  Rf6 {[%clk 0:00:32]} 51. Rxe4 {[%clk 0:00:53]}  Rf5 {[%clk 0:00:32]} 52. Ra4 {[%clk 0:00:49]}  Rf3+ {[%clk 0:00:28]} 53. Kg2 {[%clk 0:00:48]}  Rb3 {[%clk 0:00:27]} 54. Rc4 {[%clk 0:00:44]}  Rb5 {[%clk 0:00:27]} 55. Ra4 {[%clk 0:00:42]}  Kh7 {[%clk 0:00:27]} 56. Kg3 {[%clk 0:00:41]}  Kh6 {[%clk 0:00:27]} 57. Ra1 {[%clk 0:00:37]}  g5 {[%clk 0:00:25]} 58. hxg5+ {[%clk 0:00:37]}  Kxg5 {[%clk 0:00:25]} 59. Ra3 {[%clk 0:00:36]}  h4+ {[%clk 0:00:25]} 60. Kh3 {[%clk 0:00:37]}  Rf5 {[%clk 0:00:25]} 61. Ra4 {[%clk 0:00:33]}  Rf3+ {[%clk 0:00:24]} 62. Kg2 {[%clk 0:00:33]}  Rf4 {[%clk 0:00:23]} 63. Rxf4 {[%clk 0:00:23]}  Kxf4 {[%clk 0:00:23]} 64. Kh3 {[%clk 0:00:23]}  Ke5 {[%clk 0:00:23]} 65. Kxh4 {[%clk 0:00:24]}  Kd5 {[%clk 0:00:23]} 66. Kg3 {[%clk 0:00:25]}  Kc5 {[%clk 0:00:24]} 67. Kf3 {[%clk 0:00:26]}  Kb4 {[%clk 0:00:24]} 68. Ke2 {[%clk 0:00:27]}  Kxa5 {[%clk 0:00:25]} 69. Kd1 {[%clk 0:00:28]}  Kb4 {[%clk 0:00:26]} 70. Kc1 {[%clk 0:00:29]}  Kb3 {[%clk 0:00:26]} 71. Kb1 {[%clk 0:00:30]}  a5 {[%clk 0:00:27]} 72. Ka1 {[%clk 0:00:31]}  a4 {[%clk 0:00:27]} 73. Kb1 {[%clk 0:00:32]}  a3 {[%clk 0:00:28]} 74. Ka1 {[%clk 0:00:32]}  a2 {[%clk 0:00:28]} 1/2-1/2


[Site "https://www.chess.com"]

[Event "Titled Tuesday Blitz June 27 Early 2023"]
[White "Abdilkhair, Abilmansur"]
[Black "Ajavon, Anthony Obieni"]
[WhiteFideId "13716417"]
[BlackFideId "12600784"]
[WhiteElo "2441"]
[BlackElo "2008"]
[Result "1-0"]
[Round "2"]
[TimeControl "180+2"]
[Date "2023.06.27"]
[WhiteClock "0:01:52"]
[BlackClock "0:00:04"]
[Board "238"]

1. e4 {[%clk 0:03:00]}  d6 {[%clk 0:03:00]} 2. d4 {[%clk 0:02:59]}  Nf6 {[%clk 0:03:00]} 3. Nc3 {[%clk 0:02:58]}  g6 {[%clk 0:03:00]} 4. g3 {[%clk 0:02:58]}  Bg7 {[%clk 0:03:01]} 5. Bg2 {[%clk 0:02:58]}  O-O {[%clk 0:02:51]} 6. Nge2 {[%clk 0:02:58]}  Nbd7 {[%clk 0:02:48]} 7. O-O {[%clk 0:02:58]}  e5 {[%clk 0:02:48]} 8. h3 {[%clk 0:02:57]}  Re8 {[%clk 0:02:40]} 9. Be3 {[%clk 0:02:56]}  exd4 {[%clk 0:02:26]} 10. Bxd4 {[%clk 0:02:57]}  Nb6 {[%clk 0:02:15]} 11. Re1 {[%clk 0:02:52]}  c6 {[%clk 0:02:08]} 12. Nf4 {[%clk 0:02:48]}  Qc7 {[%clk 0:02:00]} 13. a4 {[%clk 0:02:46]}  Be6 {[%clk 0:01:53]} 14. a5 {[%clk 0:02:44]}  Nc4 {[%clk 0:01:53]} 15. b3 {[%clk 0:02:38]}  Nxa5 {[%clk 0:01:37]} 16. e5 {[%clk 0:02:38]}  dxe5 {[%clk 0:01:23]} 17. Bxe5 {[%clk 0:02:37]}  Qb6 {[%clk 0:01:20]} 18. Na4 {[%clk 0:02:32]}  Qb4 {[%clk 0:00:32]} 19. Bc3 {[%clk 0:02:27]}  Qb5 {[%clk 0:00:25]} 20. Bf1 {[%clk 0:02:09]}  Qf5 {[%clk 0:00:19]} 21. Bd3 {[%clk 0:02:05]}  Qg5 {[%clk 0:00:15]} 22. h4 {[%clk 0:02:06]}  Qg4 {[%clk 0:00:12]} 23. Bxa5 {[%clk 0:01:53]}  Qh3 {[%clk 0:00:04]} 24. Nxh3 {[%clk 0:01:52]} 1-0


[Site "https://www.chess.com"]

[Event "Titled Tuesday Blitz June 27 Early 2023"]
[White "Viasus, Juan Diego"]
[Black "Itkis, Boris"]
[WhiteFideId "4464346"]
[BlackFideId "1209167"]
[WhiteElo "1456"]
[BlackElo "2426"]
[Result "0-1"]
[Round "2"]
[TimeControl "180+2"]
[Date "2023.06.27"]
[WhiteClock "0:02:40"]
[BlackClock "0:02:55"]
[Board "245"]

1. c4 {[%clk 0:02:59]}  c5 {[%clk 0:02:59]} 2. Nc3 {[%clk 0:02:59]}  Nc6 {[%clk 0:03:00]} 3. g3 {[%clk 0:02:59]}  g6 {[%clk 0:03:00]} 4. Bg2 {[%clk 0:03:00]}  Bg7 {[%clk 0:03:00]} 5. Nf3 {[%clk 0:03:00]}  d6 {[%clk 0:03:01]} 6. O-O {[%clk 0:03:00]}  Nh6 {[%clk 0:03:01]} 7. d3 {[%clk 0:02:57]}  Nf5 {[%clk 0:03:01]} 8. a3 {[%clk 0:02:53]}  h5 {[%clk 0:03:01]} 9. Rb1 {[%clk 0:02:53]}  h4 {[%clk 0:03:01]} 10. Qc2 {[%clk 0:02:53]}  hxg3 {[%clk 0:02:59]} 11. fxg3 {[%clk 0:02:48]}  Ncd4 {[%clk 0:02:55]} 12. e3 {[%clk 0:02:40]}  Nxc2 {[%clk 0:02:55]} 0-1


[Site "https://www.chess.com"]

[Event "Titled Tuesday Blitz June 27 Early 2023"]
[White "Avinash Ramesh"]
[Black "Mamedov, Rauf"]
[WhiteFideId "45018340"]
[BlackFideId "13401653"]
[WhiteElo "2803"]
[BlackElo "3079"]
[Result "0-1"]
[Round "3"]
[TimeControl "180+2"]
[Date "2023.06.27"]
[WhiteClock "0:00:06"]
[BlackClock "0:00:13"]
[Board "3"]

1. d4 {[%clk 0:03:00]}  d5 {[%clk 0:02:57]} 2. c4 {[%clk 0:03:00]}  e6 {[%clk 0:02:58]} 3. Nf3 {[%clk 0:03:01]}  c5 {[%clk 0:02:58]} 4. cxd5 {[%clk 0:03:01]}  exd5 {[%clk 0:02:58]} 5. g3 {[%clk 0:03:02]}  Nc6 {[%clk 0:02:58]} 6. Bg2 {[%clk 0:03:02]}  Nf6 {[%clk 0:02:58]} 7. O-O {[%clk 0:03:03]}  Be7 {[%clk 0:02:58]} 8. b3 {[%clk 0:03:04]}  Ne4 {[%clk 0:02:58]} 9. Bb2 {[%clk 0:03:04]}  Bf6 {[%clk 0:02:58]} 10. e3 {[%clk 0:02:56]}  Bg4 {[%clk 0:02:56]} 11. h3 {[%clk 0:02:33]}  Bh5 {[%clk 0:02:52]} 12. g4 {[%clk 0:02:32]}  Bg6 {[%clk 0:02:52]} 13. Nbd2 {[%clk 0:02:33]}  h5 {[%clk 0:02:50]} 14. Nxe4 {[%clk 0:02:24]}  Bxe4 {[%clk 0:02:50]} 15. gxh5 {[%clk 0:02:19]}  Rxh5 {[%clk 0:02:46]} 16. Nh2 {[%clk 0:02:20]}  Rg5 {[%clk 0:02:18]} 17. Ng4 {[%clk 0:02:19]}  Bxg2 {[%clk 0:02:18]} 18. Kxg2 {[%clk 0:02:18]}  Qe7 {[%clk 0:02:12]} 19. Ba3 {[%clk 0:02:12]}  O-O-O {[%clk 0:01:38]} 20. Bxc5 {[%clk 0:02:12]}  Qe6 {[%clk 0:01:39]} 21. Rc1 {[%clk 0:02:09]}  Rh8 {[%clk 0:01:38]} 22. Qf3 {[%clk 0:01:59]}  Bd8 {[%clk 0:01:28]} 23. Rg1 {[%clk 0:01:26]}  f5 {[%clk 0:01:28]} 24. Kf1 {[%clk 0:01:27]}  fxg4 {[%clk 0:01:27]} 25. hxg4 {[%clk 0:01:27]}  Bc7 {[%clk 0:01:18]} 26. b4 {[%clk 0:01:22]}  Rg6 {[%clk 0:01:04]} 27. g5 {[%clk 0:01:14]}  b6 {[%clk 0:00:49]} 28. Bf8 {[%clk 0:01:13]}  Kb7 {[%clk 0:00:45]} 29. b5 {[%clk 0:01:12]}  Na5 {[%clk 0:00:44]} 30. Bb4 {[%clk 0:01:07]}  Qd7 {[%clk 0:00:36]} 31. a4 {[%clk 0:01:06]}  Re6 {[%clk 0:00:33]} 32. Bxa5 {[%clk 0:01:03]}  bxa5 {[%clk 0:00:34]} 33. Rc5 {[%clk 0:01:03]}  Re4 {[%clk 0:00:33]} 34. Ke2 {[%clk 0:00:49]}  Rh3 {[%clk 0:00:30]} 35. Qf8 {[%clk 0:00:38]}  Re8 {[%clk 0:00:30]} 36. Rxc7+ {[%clk 0:00:27]}  Kxc7 {[%clk 0:00:30]} 37. Qf4+ {[%clk 0:00:27]}  Kb7 {[%clk 0:00:29]} 38. Rc1 {[%clk 0:00:24]}  Rhh8 {[%clk 0:00:27]} 39. Rc6 {[%clk 0:00:24]}  Rhf8 {[%clk 0:00:27]} 40. Qg3 {[%clk 0:00:24]}  Re6 {[%clk 0:00:25]} 41. Rc3 {[%clk 0:00:22]}  Rc8 {[%clk 0:00:24]} 42. Rc5 {[%clk 0:00:22]}  g6 {[%clk 0:00:20]} 43. Qg2 {[%clk 0:00:22]}  Rd6 {[%clk 0:00:18]} 44. Qf1 {[%clk 0:00:21]}  Qe7 {[%clk 0:00:17]} 45. Qc1 {[%clk 0:00:21]}  Rdd8 {[%clk 0:00:18]} 46. Qc3 {[%clk 0:00:21]}  Rxc5 {[%clk 0:00:14]} 47. dxc5 {[%clk 0:00:21]}  d4 {[%clk 0:00:15]} 48. c6+ {[%clk 0:00:18]}  Kb6 {[%clk 0:00:14]} 49. Qc4 {[%clk 0:00:10]}  dxe3 {[%clk 0:00:12]} 50. fxe3 {[%clk 0:00:09]}  Qc5 {[%clk 0:00:12]} 51. Qe6 {[%clk 0:00:08]}  Qc2+ {[%clk 0:00:12]} 52. Kf3 {[%clk 0:00:09]}  Rf8+ {[%clk 0:00:12]} 53. Kg3 {[%clk 0:00:05]}  Qf2+ {[%clk 0:00:12]} 54. Kg4 {[%clk 0:00:06]}  Qg2+ {[%clk 0:00:13]} 55. Kh4 {[%clk 0:00:06]}  Rh8# {[%clk 0:00:13]} 0-1


[Site "https://www.chess.com"]